fUST/lending_fUST_20240826
["ID","MTS","AMOUNT","RATE_DAILY","PERIOD"]
[335982646,1724651454465,-500.0,0.0001308,2]
[335982647,1724651454474,-500.0,0.0001308,2]
[335982648,1724651454484,-500.0,0.0001308,2]
[335982649,1724651454493,-500.0,0.0001308,2]
[335982650,1724651454503,-1260.5,0.0001308,2]
[335982651,1724651454512,-500.0,0.0001308,2]
[335982652,1724651454522,-500.0,0.0001308,2]
[335982653,1724651454532,-500.0,0.0001308,2]
[335982654,1724651454541,-963.93,0.0001308,2]
[335982655,1724651454550,-929.87,0.0001308,2]
[335982656,1724651454560,-502.64694305,0.0001308,2]
[335982657,1724651454569,-500.0,0.0001308,2]
[335982658,1724651454579,-716.67,0.0001308,2]
[335982659,1724651454588,-500.0,0.0001308,2]
[335982660,1724651454597,-500.0,0.0001308,2]
[335982661,1724651454607,-500.0,0.0001308,2]
[335982662,1724651454616,-500.0,0.0001308,2]
[335982663,1724651454625,-500.0,0.0001308,2]
[335982664,1724651454635,-500.0,0.0001308,2]
[335982665,1724651454644,-500.0,0.0001308,2]
[335982666,1724651454653,-500.0,0.0001308,2]
[335982667,1724651454662,-500.0,0.0001308,2]
[335982668,1724651454672,-2128.99,0.0001308,2]
[335982669,1724651454681,-576.84,0.0001308,2]
[335982670,1724651454690,-500.0,0.0001308,2]
[335982671,1724651454700,-500.0,0.0001308,2]
[335982672,1724651454709,-500.0,0.0001308,2]
[335982673,1724651454719,-500.0,0.0001308,2]
[335982674,1724651454728,-500.0,0.0001308,2]
[335982675,1724651454738,-500.0,0.0001308,2]
[335982676,1724651454750,-519.9009568,0.0001308,2]
[335982677,1724651454759,-817.29,0.0001308,2]
[335982678,1724651454768,-500.0,0.0001308,2]
[335982679,1724651454777,-500.0,0.0001308,2]
[335982680,1724651454787,-500.0,0.00013081,2]
[335982681,1724651454796,-770.74,0.00013081,2]
[335982682,1724651454805,-543.32,0.00013081,2]
[335982683,1724651454814,-500.0,0.00013081,2]
[335982684,1724651454823,-500.0,0.00013081,2]
[335982685,1724651454832,-500.0,0.00013081,2]
[335982686,1724651454842,-500.0,0.00013081,2]
[335982687,1724651454851,-500.0,0.00013081,2]
[335982688,1724651454860,-902.04,0.00013081,2]
[335982689,1724651454869,-500.0,0.00013081,2]
[335982690,1724651454878,-558.15,0.00013081,2]
[335982691,1724651454888,-646.49,0.00013081,2]
[335982692,1724651454897,-680.65,0.00013081,2]
[335982693,1724651454906,-704.99,0.00013081,2]
[335982694,1724651454915,-500.0,0.00013081,2]
[335982695,1724651454928,-707.17,0.00013081,2]
[335982696,1724651454937,-560.64,0.00013081,2]
[335982697,1724651454946,-807.35,0.00013081,2]
[335982698,1724651454956,-500.0,0.00013081,2]
[335982699,1724651454965,-995.98,0.00013081,2]
[335982700,1724651454974,-500.0,0.00013081,2]
[335982701,1724651454983,-545.24,0.00013081,2]
[335982702,1724651454993,-937.82,0.00013081,2]
[335982703,1724651455001,-500.0,0.00013081,2]
[335982704,1724651455010,-318.22419931,0.00013081,2]
[335982705,1724651455019,-616.77,0.00013081,2]
[335982706,1724651455028,-500.0,0.00013081,2]
[335982707,1724651455037,-500.0,0.00013081,2]
[335982708,1724651455049,-500.0,0.00013081,2]
[335982709,1724651455058,-846.83,0.00013081,2]
[335982710,1724651455068,-500.0,0.00013081,2]
[335982711,1724651455077,-500.0,0.00013081,2]
[335982712,1724651455086,-616.18,0.00013081,2]
[335982713,1724651455095,-929.07,0.00013081,2]
[335982714,1724651455104,-517.2,0.00013081,2]
[335982715,1724651455114,-500.0,0.00013081,2]
[335982716,1724651455122,-632.02,0.00013081,2]
[335982717,1724651455131,-846.41,0.00013081,2]
[335982718,1724651455140,-912.22,0.00013081,2]
[335982719,1724651455149,-500.0,0.00013081,2]
[335982720,1724651455158,-749.99,0.00013081,2]
[335982721,1724651455166,-635.25,0.00013081,2]
[335982722,1724651455176,-689.64,0.00013081,2]
[335982723,1724651455185,-3423.6,0.00013081,2]
[335982724,1724651455194,-382.98761858,0.00013081,2]
[335982725,1724651455203,-500.0,0.00013081,2]
[335982726,1724651455212,-605.35,0.00013081,2]
[335982727,1724651455220,-500.0,0.00013081,2]
[335982728,1724651455229,-500.0,0.00013081,2]
[335982729,1724651455239,-500.0,0.00013081,2]
[335982730,1724651455248,-741.36,0.00013081,2]
[335982731,1724651455258,-500.0,0.00013081,2]
[335982732,1724651455268,-741.57,0.00013081,2]
[335982733,1724651455277,-644.99,0.00013081,2]
[335982734,1724651455287,-500.0,0.00013081,2]
[335982735,1724651455296,-973.67,0.00013081,2]
[335982736,1724651455305,-605.83,0.00013081,2]
[335982737,1724651455315,-783.85,0.00013081,2]
[335982738,1724651455324,-500.0,0.00013081,2]
[335982739,1724651455333,-535.67,0.00013081,2]
[335982740,1724651455342,-1117.16,0.00013081,2]
[335982741,1724651455351,-2008.6,0.00013081,2]
[335982742,1724651455362,-8356.54,0.00013081,2]
[335982743,1724651455371,-500.0,0.00013081,2]
[335982744,1724651455380,-4380.13,0.00013081,2]
[335982745,1724651455390,-500.0,0.00013081,2]
[335982746,1724651455399,-640.28,0.00013081,2]
[335982747,1724651455408,-535.04,0.00013081,2]
[335982748,1724651455417,-609.12,0.00013081,2]
[335982749,1724651455427,-551.85,0.00013081,2]
[335982750,1724651455436,-500.0,0.00013081,2]
[335982751,1724651455446,-500.0,0.00013081,2]
[335982752,1724651455456,-819.09,0.00013081,2]
[335982753,1724651455466,-534.52,0.00013081,2]
[335982754,1724651455476,-500.0,0.00013081,2]
[335982755,1724651455486,-592.9,0.00013081,2]
[335982756,1724651455495,-500.0,0.00013081,2]
[335982757,1724651455505,-898.45,0.00013081,2]
[335982758,1724651455514,-500.0,0.00013081,2]
[335982759,1724651455524,-500.0,0.00013081,2]
[335982760,1724651455533,-619.63,0.00013081,2]
[335982761,1724651455542,-941.9,0.00013081,2]
[335982762,1724651455551,-500.0,0.00013081,2]
[335982763,1724651455560,-983.46,0.00013081,2]
[335982764,1724651455569,-736.72,0.00013081,2]
[335982765,1724651455579,-500.0,0.00013081,2]
[335982766,1724651455588,-500.0,0.00013081,2]
[335982767,1724651455596,-698.09,0.00013081,2]
[335982768,1724651455606,-575.47,0.00013081,2]
[335982769,1724651455616,-500.0,0.00013083,2]
[335982770,1724651455625,-500.0,0.00013083,2]
[335982771,1724651455635,-500.0,0.00013083,2]
[335982772,1724651455644,-500.0,0.00013083,2]
[335982773,1724651455653,-342.97938714,0.00013083,2]
[335982774,1724651455663,-500.0,0.00013083,2]
[335982775,1724651455672,-500.0,0.00013083,2]
[335982776,1724651455681,-927.74,0.00013083,2]
[335982777,1724651455690,-930.48,0.00013083,2]
[335982778,1724651455700,-500.0,0.00013083,2]
[335982779,1724651455709,-500.0,0.00013083,2]
[335982780,1724651455718,-500.0,0.00013083,2]
[335982781,1724651455727,-554.82,0.00013083,2]
[335982782,1724651455736,-854.73,0.00013083,2]
[335982783,1724651455750,-1088.6,0.00013083,2]
[335982784,1724651455759,-541.75,0.00013083,2]
[335982785,1724651455769,-500.0,0.00013083,2]
[335982786,1724651455778,-500.0,0.00013083,2]
[335982787,1724651455788,-500.0,0.00013083,2]
[335982788,1724651455797,-500.0,0.00013083,2]
[335982789,1724651455807,-990.89,0.00013083,2]
[335982790,1724651455817,-500.0,0.00013083,2]
[335982791,1724651455828,-500.0,0.00013083,2]
[335982792,1724651455838,-500.0,0.00013083,2]
[335982793,1724651455849,-500.0,0.00013083,2]
[335982794,1724651455859,-500.0,0.00013083,2]
[335982795,1724651455869,-555.61,0.00013083,2]
[335982796,1724651455878,-500.0,0.00013083,2]
[335982797,1724651455888,-505.56,0.00013083,2]
[335982798,1724651455897,-504.61,0.00013083,2]
[335982799,1724651455907,-500.0,0.00013083,2]
[335982800,1724651455917,-500.0,0.00013083,2]
[335982801,1724651455927,-523.95,0.00013083,2]
[335982802,1724651455936,-500.0,0.00013083,2]
[335982803,1724651455945,-526.03835976,0.00013083,2]
[335982804,1724651455955,-500.0,0.00013083,2]
[335982805,1724651455964,-679.75,0.00013083,2]
[335982806,1724651455973,-500.0,0.00013083,2]
[335982807,1724651455982,-500.0,0.00013083,2]
[335982808,1724651455991,-527.14,0.00013083,2]
[335982809,1724651456000,-500.0,0.00013083,2]
[335982810,1724651456009,-500.0,0.00013083,2]
[335982811,1724651456019,-500.0,0.00013083,2]
[335982812,1724651456028,-500.0,0.00013083,2]
[335982813,1724651456037,-368.56981019,0.00013083,2]
[335982814,1724651456046,-912.48,0.00013083,2]
[335982815,1724651456055,-500.0,0.00013083,2]
[335982816,1724651456063,-500.0,0.00013083,2]
[335982817,1724651456072,-616.87,0.00013083,2]
[335982818,1724651456082,-500.0,0.00013083,2]
[335982819,1724651456091,-500.0,0.00013083,2]
[335982820,1724651456100,-500.0,0.00013083,2]
[335982821,1724651456110,-500.0,0.00013083,2]
[335982822,1724651456119,-985.31,0.00013083,2]
[335982823,1724651456129,-500.0,0.00013083,2]
[335982824,1724651456139,-926.84,0.00013083,2]
[335982825,1724651456148,-886.75,0.00013083,2]
[335982826,1724651456157,-500.0,0.00013083,2]
[335982827,1724651456166,-661.94,0.00013083,2]
[335982828,1724651456175,-500.0,0.00013083,2]
[335982829,1724651456184,-755.2,0.00013083,2]
[335982830,1724651456193,-500.0,0.00013083,2]
[335982831,1724651456203,-518.46,0.00013083,2]
[335982832,1724651456212,-500.0,0.00013083,2]
[335982833,1724651456221,-500.0,0.00013083,2]
[335982834,1724651456230,-500.0,0.00013083,2]
[335982835,1724651456239,-500.0,0.00013083,2]
[335982836,1724651456249,-792.85,0.00013083,2]
[335982837,1724651456258,-500.0,0.00013083,2]
[335982838,1724651456267,-884.75,0.00013083,2]
[335982839,1724651456275,-559.2,0.00013083,2]
[335982840,1724651456285,-677.66,0.00013083,2]
[335982841,1724651456293,-500.0,0.00013083,2]
[335982842,1724651456302,-500.0,0.00013083,2]
[335982843,1724651456312,-631.52985006,0.00013083,2]
[335982844,1724651456321,-397.90241586,0.00013083,2]
[335982845,1724651456330,-674.71,0.00013083,2]
[335982846,1724651456339,-500.0,0.00013083,2]
[335982847,1724651456348,-617.15,0.00013083,2]
[335982848,1724651456357,-500.0,0.00013083,2]
[335982849,1724651456366,-673.6,0.00013083,2]
[335982850,1724651456375,-500.0,0.00013083,2]
[335982851,1724651456384,-500.0,0.00013083,2]
[335982852,1724651456393,-500.0,0.00013083,2]
[335982853,1724651456402,-637.84,0.00013083,2]
[335982854,1724651456411,-592.31,0.00013083,2]
[335982855,1724651456421,-452.16186496,0.00013083,2]
[335982856,1724651456430,-954.61,0.00013083,2]
[335982857,1724651456439,-500.0,0.00013083,2]
[335982858,1724651456448,-500.0,0.00013083,2]
[335982859,1724651456457,-508.89,0.00013083,2]
[335982860,1724651456467,-500.0,0.00013083,2]
[335982861,1724651456476,-870.47,0.00013083,2]
[335982862,1724651456485,-500.0,0.00013083,2]
[335982863,1724651456494,-656.37,0.00013083,2]
[335982864,1724651456503,-628.64,0.00013083,2]
[335982865,1724651456513,-500.0,0.00013083,2]
[335982866,1724651456522,-500.0,0.00013083,2]
[335982867,1724651456531,-982.63,0.00013083,2]
[335982868,1724651456540,-500.0,0.00013083,2]
[335982869,1724651456549,-500.0,0.00013083,2]
[335982870,1724651456558,-500.0,0.00013083,2]
[335982871,1724651456567,-500.0,0.00013083,2]
[335982872,1724651456576,-577.7,0.00013083,2]
[335982873,1724651456585,-500.0,0.00013083,2]
[335982874,1724651456596,-500.0,0.00013083,2]
[335982875,1724651456604,-500.0,0.00013083,2]
[335982876,1724651456614,-504.1,0.00013083,2]
[335982877,1724651456623,-625.27,0.00013083,2]
[335982878,1724651456632,-500.0,0.00013083,2]
[335982879,1724651456641,-673.1,0.00013083,2]
[335982880,1724651456650,-563.96,0.00013083,2]
[335982881,1724651456659,-678.0,0.00013083,2]
[335982882,1724651456669,-500.0,0.00013083,2]
[335982883,1724651456678,-892.42,0.00013083,2]
[335982884,1724651456687,-500.0,0.00013083,2]
[335982885,1724651456696,-749.98,0.00013083,2]
[335982886,1724651456706,-615.03,0.00013083,2]
[335982887,1724651456715,-580.33,0.00013083,2]
[335982888,1724651456724,-500.0,0.00013083,2]
[335982889,1724651456733,-500.0,0.00013083,2]
[335982890,1724651456745,-1036.14,0.00013083,2]
[335982891,1724651456754,-579.77,0.00013083,2]
[335982892,1724651456763,-1156.49,0.00013083,2]
[335982893,1724651456772,-500.0,0.00013083,2]
[335982894,1724651456781,-500.0,0.00013083,2]
[335982895,1724651456791,-500.0,0.00013083,2]
[335982896,1724651456800,-500.0,0.00013083,2]
[335982897,1724651456810,-500.0,0.00013083,2]
[335982898,1724651456819,-500.0,0.00013083,2]
[335982899,1724651456828,-500.0,0.00013083,2]
[335982900,1724651456837,-595.05,0.00013083,2]
[335982901,1724651456846,-500.0,0.00013083,2]
[335982902,1724651456856,-562.87,0.00013083,2]
[335982903,1724651456866,-500.0,0.00013083,2]
[335982904,1724651456875,-803.47,0.00013083,2]
[335982905,1724651456885,-593.23,0.00013083,2]
[335982906,1724651456894,-697.5,0.00013083,2]
[335982907,1724651456904,-659.05,0.00013083,2]
[335982908,1724651456913,-500.0,0.00013083,2]
[335982909,1724651456923,-500.0,0.00013083,2]
[335982910,1724651456932,-500.0,0.00013083,2]
[335982911,1724651456941,-500.0,0.00013083,2]
[335982912,1724651456950,-500.0,0.00013083,2]
[335982913,1724651456959,-500.0,0.00013083,2]
[335982914,1724651456969,-150.112233,0.000131,2]
[335982915,1724651456978,-150.112233,0.000131,2]
[335982916,1724651456988,-150.112233,0.000131,2]
[335982917,1724651456997,-150.112233,0.000131,2]
[335982918,1724651457007,-500.0,0.00013121,2]
[335982919,1724651457016,-1028.76901252,0.00013121,2]
[335982920,1724651457025,-500.0,0.00013121,2]
[335982921,1724651457035,-1003.99234135,0.00013121,2]
[335982922,1724651457044,-150.374,0.00013274,2]
[335982923,1724651457054,-524.143,0.00013274,2]
[335982924,1724651457063,-1416.0,0.00013274,2]
[335982925,1724651457073,-743.4,0.00013344,2]
[335982926,1724651457082,-1867.14,0.00013344,2]
[335982927,1724651457091,-500.0,0.00013344,2]
[335982928,1724651457101,-569.25,0.00013344,2]
[335982929,1724651457110,-500.0,0.00013344,2]
[335982930,1724651457120,-595.62,0.00013344,2]
[335982931,1724651457129,-500.0,0.00013344,2]
[335982932,1724651457139,-500.0,0.00013353,2]
[335982933,1724651457149,-801.54,0.00013353,2]
[335982934,1724651457159,-9038.31,0.00013353,2]
[335982935,1724651457168,-500.0,0.00013353,2]
[335982936,1724651457177,-2432.08,0.00013353,2]
[335982937,1724651457186,-500.0,0.00013353,2]
[335982938,1724651457195,-564.67,0.00013354,2]
[335982939,1724651457205,-500.0,0.00013354,2]
[335982940,1724651457215,-653.9,0.00013354,2]
[335982941,1724651457224,-500.0,0.00013354,2]
[335982942,1724651457234,-500.0,0.00013354,2]
[335982943,1724651457244,-500.0,0.00013354,2]
[335982944,1724651457253,-500.0,0.00013354,2]
[335982945,1724651457263,-500.0,0.00013354,2]
[335982946,1724651457272,-9737.48,0.00013354,2]
[335982947,1724651457281,-500.0,0.00013354,2]
[335982948,1724651457291,-2600.67,0.00013354,2]
[335982949,1724651457300,-500.0,0.00013354,2]
[335982950,1724651457309,-622.95,0.00013354,2]
[335982951,1724651457320,-735.22,0.00013354,2]
[335982952,1724651457329,-4078.22,0.00013354,2]
[335982953,1724651457338,-497.52125363,0.00013354,2]
[335982954,1724651457347,-303.86,0.00013354,2]
[335982955,1724651457358,-500.0,0.00013354,2]
[335982956,1724651457368,-500.0,0.00013354,2]
[335982957,1724651457378,-2984.54,0.00013354,2]
[335982958,1724651457388,-1214.86,0.00013354,2]
[335982959,1724651457397,-500.0,0.00013354,2]
[335982960,1724651457407,-500.0,0.00013354,2]
[335982961,1724651457417,-500.0,0.00013354,2]
[335982962,1724651457427,-558.88,0.00013354,2]
[335982963,1724651457436,-500.0,0.00013354,2]
[335982964,1724651457446,-500.0,0.00013354,2]
[335982965,1724651457459,-626.45,0.00013354,2]
[335982966,1724651457468,-500.0,0.00013354,2]
[335982967,1724651457478,-500.0,0.00013354,2]
[335982968,1724651457487,-23655.5,0.00013354,2]
[335982969,1724651457496,-500.0,0.00013354,2]
[335982970,1724651457508,-500.0,0.00013354,2]
[335982971,1724651457518,-500.0,0.00013354,2]
[335982972,1724651457527,-664.44,0.00013354,2]
[335982973,1724651457536,-634.91,0.00013354,2]
[335982974,1724651457545,-335.49880222,0.00013354,2]
[335982975,1724651457556,-640.98,0.00013354,2]
[335982976,1724651457566,-1445.08,0.00013354,2]
[335982977,1724651457575,-565.55,0.00013354,2]
[335982978,1724651457585,-500.0,0.00013354,2]
[335982979,1724651457594,-593.61,0.00013354,2]
[335982980,1724651457604,-500.0,0.00013354,2]
[335982981,1724651457614,-500.0,0.00013354,2]
[335982982,1724651457623,-500.0,0.00013354,2]
[335982983,1724651457633,-500.0,0.00013354,2]
[335982984,1724651457642,-1260.5,0.00013354,2]
[335982985,1724651457652,-500.0,0.00013354,2]
[335982986,1724651457662,-963.93,0.00013354,2]
[335982987,1724651457672,-929.87,0.00013354,2]
[335982988,1724651457682,-500.0,0.00013354,2]
[335982989,1724651457692,-716.67,0.00013354,2]
[335982990,1724651457702,-500.0,0.00013354,2]
[335982991,1724651457712,-500.0,0.00013354,2]
[335982992,1724651457722,-500.0,0.00013354,2]
[335982993,1724651457731,-500.0,0.00013354,2]
[335982994,1724651457743,-500.0,0.00013354,2]
[335982995,1724651457757,-500.0,0.00013354,2]
[335982996,1724651457767,-500.0,0.00013354,2]
[335982997,1724651457776,-500.0,0.00013354,2]
[335982998,1724651457787,-500.0,0.00013354,2]
[335982999,1724651457797,-2128.99,0.00013354,2]
[335983000,1724651457807,-576.84,0.00013354,2]
[335983001,1724651457817,-500.0,0.00013354,2]
[335983002,1724651457827,-500.0,0.00013354,2]
[335983003,1724651457838,-500.0,0.00013354,2]
[335983004,1724651457847,-500.0,0.00013354,2]
[335983005,1724651457857,-500.0,0.00013354,2]
[335983006,1724651457867,-817.29,0.00013354,2]
[335983007,1724651457877,-500.0,0.00013354,2]
[335983008,1724651457887,-500.0,0.00013354,2]
[335983009,1724651457896,-500.0,0.00013355,2]
[335983010,1724651457906,-770.74,0.00013355,2]
[335983011,1724651457915,-500.0,0.00013355,2]
[335983012,1724651457926,-500.0,0.00013355,2]
[335983013,1724651457935,-500.0,0.00013355,2]
[335983014,1724651457945,-500.0,0.00013355,2]
[335983015,1724651457954,-500.0,0.00013355,2]
[335983016,1724651457964,-902.04,0.00013355,2]
[335983017,1724651457973,-500.0,0.00013355,2]
[335983018,1724651457983,-558.15,0.00013355,2]
[335983019,1724651457993,-646.49,0.00013355,2]
[335983020,1724651458003,-680.65,0.00013355,2]
[335983021,1724651458012,-704.99,0.00013355,2]
[335983022,1724651458022,-500.0,0.00013355,2]
[335983023,1724651458032,-707.17,0.00013355,2]
[335983024,1724651458041,-560.64,0.00013355,2]
[335983025,1724651458051,-807.35,0.00013355,2]
[335983026,1724651458060,-500.0,0.00013355,2]
[335983027,1724651458070,-995.98,0.00013355,2]
[335983028,1724651458080,-500.0,0.00013355,2]
[335983029,1724651458091,-545.24,0.00013355,2]
[335983030,1724651458101,-937.82,0.00013355,2]
[335983031,1724651458110,-500.0,0.00013355,2]
[335983032,1724651458119,-616.77,0.00013355,2]
[335983033,1724651458129,-500.0,0.00013355,2]
[335983034,1724651458139,-500.0,0.00013355,2]
[335983035,1724651458148,-500.0,0.00013355,2]
[335983036,1724651458158,-846.83,0.00013355,2]
[335983037,1724651458168,-500.0,0.00013355,2]
[335983038,1724651458177,-500.0,0.00013355,2]
[335983039,1724651458186,-616.18,0.00013355,2]
[335983040,1724651458196,-929.07,0.00013355,2]
[335983041,1724651458205,-517.2,0.00013355,2]
[335983042,1724651458215,-500.0,0.00013355,2]
[335983043,1724651458225,-632.02,0.00013355,2]
[335983044,1724651458235,-846.41,0.00013355,2]
[335983045,1724651458256,-1116.442269,0.00013355,2]
[335983046,1724651458276,-912.22,0.00013355,2]
[335983047,1724651458300,-1116.442269,0.00013355,2]
[335983048,1724651458322,-500.0,0.00013355,2]
[335983049,1724651458347,-749.99,0.00013355,2]
[335983050,1724651458368,-635.25,0.00013355,2]
[335983051,1724651458390,-689.64,0.00013355,2]
[335983052,1724651458415,-3423.6,0.00013355,2]
[335983053,1724651458439,-500.0,0.00013355,2]
[335983054,1724651458463,-605.35,0.00013355,2]
[335983055,1724651458486,-500.0,0.00013355,2]
[335983056,1724651458496,-500.0,0.00013355,2]
[335983057,1724651458505,-500.0,0.00013355,2]
[335983058,1724651458515,-741.36,0.00013355,2]
[335983059,1724651458524,-741.57,0.00013355,2]
[335983060,1724651458534,-644.99,0.00013355,2]
[335983061,1724651458544,-500.0,0.00013355,2]
[335983062,1724651458553,-973.67,0.00013355,2]
[335983063,1724651458563,-605.83,0.00013355,2]
[335983064,1724651458572,-783.85,0.00013355,2]
[335983065,1724651458582,-500.0,0.00013355,2]
[335983066,1724651458591,-535.67,0.00013355,2]
[335983067,1724651458600,-1117.16,0.00013355,2]
[335983068,1724651458610,-2008.6,0.00013355,2]
[335983069,1724651458620,-8356.54,0.00013355,2]
[335983070,1724651458630,-500.0,0.00013355,2]
[335983071,1724651458639,-4380.13,0.00013355,2]
[335983072,1724651458649,-500.0,0.00013355,2]
[335983073,1724651458658,-640.28,0.00013355,2]
[335983074,1724651458668,-535.04,0.00013355,2]
[335983075,1724651458677,-609.12,0.00013355,2]
[335983076,1724651458687,-551.85,0.00013355,2]
[335983077,1724651458696,-500.0,0.00013355,2]
[335983078,1724651458706,-500.0,0.00013355,2]
[335983079,1724651458716,-819.09,0.00013355,2]
[335983080,1724651458726,-534.52,0.00013355,2]
[335983081,1724651458737,-500.0,0.00013355,2]
[335983082,1724651458750,-592.9,0.00013355,2]
[335983083,1724651458759,-500.0,0.00013355,2]
[335983084,1724651458768,-898.45,0.00013355,2]
[335983085,1724651458778,-500.0,0.00013355,2]
[335983086,1724651458787,-500.0,0.00013355,2]
[335983087,1724651458796,-619.63,0.00013355,2]
[335983088,1724651458805,-941.9,0.00013355,2]
[335983089,1724651458815,-500.0,0.00013355,2]
[335983090,1724651458824,-983.46,0.00013355,2]
[335983091,1724651458834,-736.72,0.00013355,2]
[335983092,1724651458843,-500.0,0.00013355,2]
[335983093,1724651458852,-518.36395015,0.00013355,2]
[335983094,1724651458862,-698.09,0.00013355,2]
[335983095,1724651458871,-575.47,0.00013355,2]
[335983096,1724651458880,-1851.29332,0.00013356,2]
[335983097,1724651458889,-1851.29332,0.00013356,2]
[335983098,1724651458898,-500.0,0.00013357,2]
[335983099,1724651458908,-500.0,0.00013357,2]
[335983100,1724651458918,-500.0,0.00013357,2]
[335983101,1724651458928,-533.99698326,0.00013357,2]
[335983102,1724651458938,-500.0,0.00013357,2]
[335983103,1724651458947,-500.0,0.00013357,2]
[335983104,1724651458957,-927.74,0.00013357,2]
[335983105,1724651458967,-930.48,0.00013357,2]
[335983106,1724651458977,-500.0,0.00013357,2]
[335983107,1724651458987,-500.0,0.00013357,2]
[335983108,1724651458996,-500.0,0.00013357,2]
[335983109,1724651459006,-554.82,0.00013357,2]
[335983110,1724651459016,-854.73,0.00013357,2]
[335983111,1724651459206,-1088.6,0.00013357,2]
[335983112,1724651459220,-541.75,0.00013357,2]
[335983113,1724651459229,-500.0,0.00013357,2]
[335983114,1724651459238,-500.0,0.00013357,2]
[335983115,1724651459247,-500.0,0.00013357,2]
[335983116,1724651459256,-500.0,0.00013357,2]
[335983117,1724651459265,-990.89,0.00013357,2]
[335983118,1724651459274,-500.0,0.00013357,2]
[335983119,1724651459283,-510.56,0.00013357,2]
[335983120,1724651459292,-500.0,0.00013357,2]
[335983121,1724651459302,-500.0,0.00013357,2]
[335983122,1724651459312,-500.0,0.00013357,2]
[335983123,1724651459321,-555.61,0.00013357,2]
[335983124,1724651459331,-500.0,0.00013357,2]
[335983125,1724651459340,-505.56,0.00013357,2]
[335983126,1724651459349,-504.61,0.00013357,2]
[335983127,1724651459358,-500.0,0.00013357,2]
[335983128,1724651459367,-500.0,0.00013357,2]
[335983129,1724651459376,-523.95,0.00013357,2]
[335983130,1724651459385,-500.0,0.00013357,2]
[335983131,1724651459394,-500.0,0.00013357,2]
[335983132,1724651459403,-679.75,0.00013357,2]
[335983133,1724651459412,-500.0,0.00013357,2]
[335983134,1724651459421,-500.0,0.00013357,2]
[335983135,1724651459430,-527.14,0.00013357,2]
[335983136,1724651459440,-500.0,0.00013357,2]
[335983137,1724651459449,-500.0,0.00013357,2]
[335983138,1724651459458,-500.0,0.00013357,2]
[335983139,1724651459467,-500.0,0.00013357,2]
[335983140,1724651459477,-912.48,0.00013357,2]
[335983141,1724651459486,-500.0,0.00013357,2]
[335983142,1724651459495,-500.0,0.00013357,2]
[335983143,1724651459504,-500.0,0.00013357,2]
[335983144,1724651459513,-616.87,0.00013357,2]
[335983145,1724651459522,-500.0,0.00013357,2]